[Event "Berlin Championship 2024"]
[Site "Berlin"]
[Date "2024.03.31"]
[Round "1.1"]
[White "Nogly, Christoph"]
[Black "Baldauf, Marco"]
[Result "1/2-1/2"]
[ECO "E04"]
[WhiteElo "2228"]
[BlackElo "2481"]
[Annotator "RC"]
[PlyCount "90"]
[EventDate "2024.03.30"]
[EventType "swiss"]
[EventCountry "GER"]
[SourceTitle "playchess.com"]
[Source "ChessBase"]
[SourceQuality "1"]
[TimeControl "40/5400+30:1800+30"]

1. d4 {[%emt 0:00:03]} d5 {[%emt 0:00:04]} 2. c4 {[%emt 0:00:04]} e6 {[%emt 0:00:04]} 3. Nf3 {[%emt 0:00:05]} Nf6 {[%emt 0:00:04]} 4. g3 {[%emt 0:00:06]} dxc4 {[%emt 0:00:04]} 5. Bg2 {[%emt 0:00:12]} a6 {[%emt 0:00:22]} 6. O-O {[%emt 0:00:31]} Nc6 {[%emt 0:00:18]} 7. e3 {[%emt 0:01:41]} Rb8 {[%emt 0:01:31]} 8. Qe2 {[%emt 0:01:33]} b5 {[%emt 0:00:47]} 9. b3 {[%emt 0:00:06]} cxb3 {[%emt 0:00:04]} 10. axb3 {[%emt 0:00:06]} Bb7 {[%emt 0:03:56]} 11. Bd2 {[%emt 0:00:08]} Bd6 {[%emt 0:03:09]} 12. Rc1 {[%emt 0:00:40]} O-O {[%emt 0:02:00]} 13. Ne1 {[%emt 0:05:05]} Qe8 {[%emt 0:02:07]} 14. Nd3 {[%emt 0:02:29]} e5 {[%emt 0:01:26]} 15. dxe5 {[%emt 0:13:46]} Nxe5 {[%emt 0:04:41]} 16. Bxb7 {[%emt 0:00:57]} Rxb7 {[%emt 0:00:31]} 17. Nxe5 {[%emt 0:11:27]} Qxe5 {[%emt 0:00:47]} 18. Bc3 {[%emt 0:00:16]} Qe6 {[%emt 0:02:02]} 19. Bxf6 {[%emt 0:00:43]} Qxf6 {[%emt 0:00:03]} 20. Rxa6 {[%emt 0:00:22]} Qf5 {[%emt 0:08:03]} 21. Qc2 {[%emt 0:09:37]} Qg4 {[%emt 0:02:58]} 22. Qc6 {[%emt 0:14:45]} Rbb8 {[%emt 0:00:23]} 23. Nc3 {[%emt 0:00:13]} Qb4 {[%emt 0:01:51]} 24. Ne4 {[%emt 0:12:38]} Rbd8 {[%emt 0:02:50]} 25. Nxd6 {[%emt 0:05:11]} Rxd6 {[%emt 0:00:20]} 26. Qb7 {[%emt 0:00:29]} Rxa6 {[%emt 0:04:09]} 27. Qxa6 {[%emt 0:00:01]} Qxb3 {[%emt 0:00:04]} 28. Rxc7 {[%emt 0:06:51]} g6 {[%emt 0:02:50]} 29. h4 {[%emt 0:02:10]} Qd1+ {[%emt 0:05:00]} 30. Kg2 {[%emt 0:00:13]} Qd5+ {[%emt 0:00:04]} 31. Kg1 {[%emt 0:02:49]} Ra8 {[%emt 0:00:05]} 32. Rc8+ {[%emt 0:00:05]} Rxc8 {[%emt 0:00:03]} 33. Qxc8+ {[%emt 0:00:08]} Kg7 {[%emt 0:00:02]} 34. Qc3+ {[%emt 0:00:57]} f6 {[%emt 0:03:31]} 35. Qc7+ {[%emt 0:03:37]} Qf7 {[%emt 0:00:02]} 36. Qc5 {[%emt 0:00:55]} Qb7 {[%emt 0:00:11]} 37. Qb4 {[%emt 0:00:05]} Kf7 {[%emt 0:01:45]} 38. Qb3+ {[%emt 0:02:29]} Ke7 {[%emt 0:00:04]} 39. Qg8 {[%emt 0:00:49]} Kd6 {[%emt 0:00:21]} 40. Qd8+ {[%emt 0:00:27]} Ke6 {[%emt 0:07:41]} 41. Qe8+ {[%emt 0:10:25]} Kf5 {[%emt 0:04:10]} 42. e4+ {[%emt 0:02:05]} Qxe4 {[%emt 0:00:07]} 43. Qxb5+ {[%emt 0:00:04]} Kg4 {[%emt 0:00:05]} 44. Qf1 {[%emt 0:02:50]} f5 {[%emt 0:01:14]} 45. Kh2 {[%emt 0:01:12]} Kh5 {[%emt 0:00:39]} 1/2-1/2

[Event "Berlin Championship 2024"]
[Site "Berlin"]
[Date "2024.03.31"]
[Round "1.2"]
[White "Schmidek, Emil"]
[Black "Noeldner, Julian"]
[Result "1-0"]
[ECO "D70"]
[WhiteElo "2439"]
[BlackElo "2179"]
[Annotator "TA"]
[PlyCount "81"]
[EventDate "2024.03.30"]
[EventType "swiss"]
[EventCountry "GER"]
[SourceTitle "playchess.com"]
[Source "ChessBase"]
[SourceQuality "1"]
[TimeControl "40/5400+30:1800+30"]

{[%evp 16,81,36,37,39,25,21,23,45,-27,-16,-41,-12,-23,-16,-14,0,0,10,9,41,37,39,8,13,9,99,82,237,240,209,212,270,274,299,268,307,289,325,324,339,328,427,427,462,443,414,402,575,568,559,546,844,833,1006,1001,971,974,932,895,1892,1285,1800,1014,1434,1315,1048,978]} 1. d4 {[%emt 0:00:03]} Nf6 {[%emt 0:00:18]} 2. c4 {[%emt 0:00:06]} g6 {[%emt 0:00:39]} 3. f3 {[%emt 0:00:08]} d5 {[%emt 0:02:12]} 4. cxd5 {[%emt 0:00:07]} Nxd5 {[%emt 0:00:06]} 5. e4 {[%emt 0:00:10]} Nb6 {[%emt 0:00:07]} 6. Be3 {[%emt 0:00:19]} Bg7 {[%emt 0:00:15]} 7. Nc3 {[%emt 0:00:14]} O-O {[%emt 0:00:09]} 8. Qd2 {[%emt 0:00:08]} e5 {[%emt 0:02:36]} 9. d5 {[%emt 0:00:18]} c6 {[%emt 0:00:07]} 10. h4 {[%emt 0:04:14]} cxd5 {[%emt 0:00:20]} 11. exd5 {[%emt 0:00:22]} N8d7 {[%emt 0:00:11] White has an edge.} 12. O-O-O {[%emt 0:17:20]} ({Better is} 12. h5 $14) 12... Nf6 $11 {[%emt 0:05:45]} 13. g4 {[%emt 0:19:35] [#]} e4 $1 {[%emt 0:11:13]} 14. g5 {[%emt 0:14:30]} (14. Nxe4 $2 {is the wrong capture.} Nxe4 (14... Nbxd5 15. Nxf6+ Qxf6 16. Bd4 $17) (14... Nfxd5 15. Bd4 $15) 15. fxe4 Bxg4 $19) 14... Nh5 {[%emt 0:01:44] aiming for ...Ng3.} 15. Bd4 $1 {[%emt 0:01:06]} (15. fxe4 $2 Ng3 16. Rh2 Bxc3 17. Qxc3 Nxe4 $17) 15... Bxd4 {[%emt 0:21:44]} 16. Qxd4 {[%emt 0:00:11]} exf3 {[%emt 0:00:08]} 17. Nxf3 {[%emt 0:07:34]} Bf5 {[%emt 0:08:08]} 18. Bd3 {[%emt 0:02:10]} (18. d6 {is interesting.} Rc8 19. Ne5 Ng3 20. Rg1) 18... Bxd3 {[%emt 0:01:26]} 19. Rxd3 {[%emt 0:00:51] Threatening d6.} Rc8 {[%emt 0:03:41]} 20. Ne5 {[%emt 0:04:14] Inhibits Rc4. With the idea d6.} Qd6 {[%emt 0:04:22] [#]} (20... f6 $1 $11 {remains equal.} 21. gxf6 Qxf6) 21. Kb1 $1 $16 {[%emt 0:03:24] White is more active.} Nd7 $2 {[%emt 0:06:24] A mistake that costs the game.} (21... f5 $16 {keeps fighting.}) 22. Nxd7 $18 {[%emt 0:06:13]} Qxd7 {[%emt 0:02:16]} 23. d6 $40 {[%emt 0:03:35][%cal Oc3d5,Bd5d6,Bd6d7][%mdl 160] White has strong attack.} (23. Qxa7 Qf5 24. Qd4 Nf4 $11) 23... Qc6 {[%emt 0:06:14]} 24. Rdd1 {[%emt 0:04:08][%cal Oc3d5] Hoping for Nd5!} Qc5 {[%emt 0:05:58]} 25. d7 {[%emt 0:01:53]} Qxd4 {[%emt 0:04:09]} 26. Rxd4 {[%emt 0:00:12]} Rcd8 {[%emt 0:00:04]} 27. Ne4 {[%emt 0:01:00]} b6 {[%emt 0:01:06]} 28. Nf6+ {[%emt 0:02:18]} Nxf6 {[%emt 0:10:22]} 29. gxf6 {[%emt 0:00:07][%mdl 4096] Endgame. KRR-KRR} Rb8 {[%emt 0:00:04]} 30. Rc1 {[%emt 0:01:50] White threatens Rdc4 and mate.} h6 {[%emt 0:02:36]} 31. Rc7 {[%emt 0:02:06]} a5 {[%emt 0:00:10]} (31... Kh7 {might work better.} 32. a4 (32. Rxa7 Rbd8 $18) 32... a6) 32. Kc2 {[%emt 0:00:52] White is clearly winning.} Kh7 {[%emt 0:01:17]} 33. Kd3 {[%emt 0:01:52]} g5 {[%emt 0:00:22]} 34. h5 {[%emt 0:00:34]} Rfd8 {[%emt 0:00:44]} 35. Kc4 {[%emt 0:00:59]} Rg8 {[%emt 0:00:32]} 36. Rg4 {[%emt 0:01:44]} b5+ {[%emt 0:00:25]} 37. Kc5 {[%emt 0:00:10]} b4 {[%emt 0:00:20]} 38. Kc6 {[%emt 0:01:00] And now Kd6 would win.} Ra8 {[%emt 0:00:38]} 39. Kb6 {[%emt 0:00:33]} a4 {[%emt 0:00:31]} 40. Ra7 {[%emt 0:01:07] Intending Rxa8 and mate.} Rab8+ {[%emt 0:00:36]} 41. Kc7 {[%emt 0:02:23] Weighted Error Value: White=0.08 (flawless) /Black=0.43.  Mistake:       	White=1     	Black=3      Inaccurate:     	White=1     	Black=4      OK:         	White=12    	Black=8      Best:        	White=1     	---        Strong:       	White=2     	---} 1-0

[Event "Berlin Championship 2024"]
[Site "Berlin"]
[Date "2024.03.31"]
[Round "1.3"]
[White "Noetzel, Felix"]
[Black "Lagunow, Raphael"]
[Result "0-1"]
[ECO "B33"]
[WhiteElo "2172"]
[BlackElo "2421"]
[Annotator "RC"]
[PlyCount "74"]
[EventDate "2024.03.30"]
[EventType "swiss"]
[EventCountry "GER"]
[SourceTitle "playchess.com"]
[Source "ChessBase"]
[SourceQuality "1"]
[TimeControl "40/5400+30:1800+30"]

1. e4 {[%emt 0:00:04]} c5 {[%emt 0:00:07]} 2. Nf3 {[%emt 0:00:38]} Nc6 {[%emt 0:00:06]} 3. d4 {[%emt 0:00:06]} cxd4 {[%emt 0:00:05]} 4. Nxd4 {[%emt 0:00:05]} Nf6 {[%emt 0:00:12]} 5. Nc3 {[%emt 0:00:06]} e5 {[%emt 0:00:04]} 6. Ndb5 {[%emt 0:00:11]} d6 {[%emt 0:00:06]} 7. Bg5 {[%emt 0:00:05]} a6 {[%emt 0:00:07]} 8. Na3 {[%emt 0:00:07]} b5 {[%emt 0:00:17]} 9. Nd5 {[%emt 0:00:06]} Be7 {[%emt 0:00:04]} 10. Bxf6 {[%emt 0:00:06]} Bxf6 {[%emt 0:00:03]} 11. c3 {[%emt 0:01:47]} Ne7 {[%emt 0:00:06]} 12. Nxf6+ {[%emt 0:05:34]} gxf6 {[%emt 0:01:14]} 13. c4 {[%emt 0:00:05]} Bb7 {[%emt 0:25:29]} 14. cxb5 {[%emt 0:21:18]} Bxe4 {[%emt 0:01:43]} 15. Qa4 {[%emt 0:11:16]} d5 {[%emt 0:01:21]} 16. bxa6+ {[%emt 0:05:30]} Kf8 {[%emt 0:00:42]} 17. f3 {[%emt 0:12:19]} Bf5 {[%emt 0:01:51]} 18. Qb4 {[%emt 0:00:37]} Kg7 {[%emt 0:05:28]} 19. Rc1 {[%emt 0:06:48]} d4 {[%emt 0:08:20]} 20. Bb5 {[%emt 0:18:02]} Nd5 {[%emt 0:04:34]} 21. Qd2 {[%emt 0:00:47]} Nc7 {[%emt 0:02:32]} 22. Bc4 {[%emt 0:05:50]} Nxa6 {[%emt 0:01:30]} 23. O-O {[%emt 0:00:05]} Qb6 {[%emt 0:10:12]} 24. Bd5 {[%emt 0:04:41]} Rac8 {[%emt 0:01:48]} 25. Nc4 {[%emt 0:01:09]} Qb4 {[%emt 0:06:54]} 26. Qxb4 {[%emt 0:04:05]} Nxb4 {[%emt 0:00:06]} 27. Nd6 {[%emt 0:01:13]} Nxd5 {[%emt 0:00:08]} 28. Nxf5+ {[%emt 0:00:03]} Kg6 {[%emt 0:00:06]} 29. g4 {[%emt 0:00:36]} Kg5 {[%emt 0:28:03]} 30. Nd6 {[%emt 0:00:21]} Rxc1 {[%emt 0:00:40]} 31. Rxc1 {[%emt 0:00:16]} Kf4 {[%emt 0:00:08]} 32. Kf2 {[%emt 0:01:25]} h5 {[%emt 0:00:46]} 33. Rg1 {[%emt 0:00:56]} Ne3 {[%emt 0:00:04]} 34. g5 {[%emt 0:00:40]} fxg5 {[%emt 0:00:42]} 35. Nxf7 {[%emt 0:00:04]} Rc8 {[%emt 0:01:33]} 36. Rxg5 {[%emt 0:00:45]} Rc2+ {[%emt 0:00:13]} 37. Ke1 {[%emt 0:00:40]} d3 {[%emt 0:00:11]} 0-1

[Event "Berlin Championship 2024"]
[Site "Berlin"]
[Date "2024.03.31"]
[Round "1.4"]
[White "Polzin, Rainer"]
[Black "Brustkern, Juergen"]
[Result "1-0"]
[ECO "C73"]
[WhiteElo "2401"]
[BlackElo "2153"]
[Annotator "TA"]
[PlyCount "69"]
[EventDate "2024.03.30"]
[EventType "swiss"]
[EventCountry "GER"]
[SourceTitle "playchess.com"]
[Source "ChessBase"]
[SourceQuality "1"]
[TimeControl "40/5400+30:1800+30"]

{[%evp 12,69,43,14,19,18,48,32,37,31,34,20,22,17,14,4,11,0,1,-23,-10,-33,0,0,0,0,16,0,0,0,0,-27,8,0,0,-12,-10,-22,-7,-10,-16,-4,0,0,0,-22,-25,-23,-11,-16,-11,-48,-25,-40,-52,-35,-33,-112,-110,-133]} 1. e4 {[%emt 0:57:41]} e5 {[%emt 1:03:30]} 2. Nf3 {[%emt 0:00:30]} Nc6 {[%emt 0:00:30]} 3. Bb5 {[%emt 0:00:30]} a6 {[%emt 0:00:30]} 4. Ba4 {[%emt 0:00:30]} d6 {[%emt 0:00:30]} 5. Bxc6+ {[%emt 0:00:30]} bxc6 {[%emt 0:00:30]} 6. d4 {[%emt 0:00:30]} f6 {[%emt 0:00:30]} 7. h3 {[%emt 0:00:30]} g6 {[%emt 0:00:30]} 8. Be3 {[%emt 0:00:30]} Nh6 {[%emt 0:00:30][%cal Bg8h6,Bh6f7,Bf7d8,Bd8e6][%mdl 32]} 9. dxe5 {[%emt 0:00:30]} fxe5 {[%emt 0:00:30] White is slightly better.} 10. Qd2 {[%emt 0:00:30]} Nf7 {[%emt 0:00:30]} 11. Nc3 {[%emt 0:00:30]} Bg7 {[%emt 0:00:30]} 12. Ng5 {[%emt 0:00:30]} Qe7 {[%emt 0:00:30]} 13. h4 {[%emt 0:00:30]} Nd8 {[%emt 0:00:30]} 14. Nf3 {[%emt 0:00:30][%cal Bg5f3,Bf3g1,Bg1e2,Be2f4][%mdl 32]} h6 {[%emt 0:00:30]} 15. Ng1 {[%emt 0:00:30]} Rb8 {[%emt 0:00:30]} 16. O-O-O {[%emt 0:00:30]} Qf7 {[%emt 0:00:30]} 17. Nge2 {[%emt 0:00:30]} Ne6 {[%emt 0:00:30]} 18. Rdf1 {[%emt 0:00:30]} c5 {[%emt 0:00:30]} 19. f4 {[%emt 0:00:30]} (19. b3 $5) 19... exf4 {[%emt 0:00:30]} 20. Nxf4 {[%emt 0:00:30]} O-O {[%emt 0:00:30]} 21. Rf2 {[%emt 0:00:30][%cal Of4h5] Black must now prevent Nh5!} Qe8 {[%emt 0:00:30]} 22. Rhf1 {[%emt 0:00:30]} Nxf4 {[%emt 0:00:30]} 23. Bxf4 {[%emt 0:00:30]} Kh7 {[%emt 0:00:30]} 24. Qd3 {[%emt 0:00:30]} Bg4 {[%emt 0:00:30]} 25. Bd2 {[%emt 0:00:30] Threatens to win with Rxf8.} Rxf2 {[%emt 0:00:30]} 26. Rxf2 {[%emt 0:00:30]} a5 {[%emt 0:00:30]} 27. b3 {[%emt 0:00:30]} Rb4 {[%emt 0:00:30][%cal Oa5a4,Bb8b4,Bb4e4,Be4e3][%mdl 32]} 28. Qa6 {[%emt 0:00:30] [#]} a4 $1 {[%emt 0:00:30]} 29. Qa7 {[%emt 0:00:30]} axb3 {[%emt 0:00:30]} 30. axb3 {[%emt 0:00:30]} Qd7 {[%emt 0:00:30]} (30... Be6 {is more complex.} 31. Qxc7 Qa8 32. Kb2 c4) 31. Nd5 {[%emt 0:00:30]} Rxe4 {[%emt 0:00:30] aiming for ...Qe6.} 32. Nf6+ {[%emt 0:00:30]} Bxf6 {[%emt 0:00:30]} 33. Rxf6 {[%emt 0:00:30]} Qe7 {[%emt 0:00:30]} 34. Bc3 {[%emt 0:00:30] [#]} (34. Rf2 $15) 34... Re3 $1 $17 {[%emt 0:00:30]} 35. Qa5 {[%emt 0:00:30][%mdl 32768] Weighted Error Value: White=0.15 (very precise) /Black=0.06 (flawless) .  Mistake:       	White=1     	---        Inaccurate:     	White=2     	Black=3      OK:         	White=7     	Black=12     Best:        	White=1     	Black=2      Strong:       	---       	Black=1     . Loss on time!?} 1-0

[Event "Berlin Championship 2024"]
[Site "Berlin"]
[Date "2024.03.31"]
[Round "1.5"]
[White "Petersen, Marcel"]
[Black "Poltorak, Sebastian"]
[Result "1/2-1/2"]
[ECO "B40"]
[WhiteElo "2133"]
[BlackElo "2392"]
[Annotator "RC"]
[PlyCount "80"]
[EventDate "2024.03.30"]
[EventType "swiss"]
[EventCountry "GER"]
[SourceTitle "playchess.com"]
[Source "ChessBase"]
[SourceQuality "1"]
[TimeControl "40/5400+30:1800+30"]

1. e4 {[%emt 0:00:03]} c5 {[%emt 0:00:26]} 2. Nf3 {[%emt 0:00:07]} e6 {[%emt 0:00:06]} 3. g3 {[%emt 0:00:05]} Nc6 {[%emt 0:00:46]} 4. Bg2 {[%emt 0:00:07]} Nf6 {[%emt 0:00:25]} 5. Qe2 {[%emt 0:00:08]} e5 {[%emt 0:01:50]} 6. O-O {[%emt 0:01:26]} Be7 {[%emt 0:00:19]} 7. c3 {[%emt 0:05:11]} d6 {[%emt 0:03:33]} 8. h3 {[%emt 0:03:50]} O-O {[%emt 0:02:56]} 9. Rd1 {[%emt 0:02:35]} Qb6 {[%emt 0:05:31]} 10. Na3 {[%emt 0:09:25]} Ne8 {[%emt 0:09:15]} 11. d4 {[%emt 0:05:47]} cxd4 {[%emt 0:00:22]} 12. cxd4 {[%emt 0:00:10]} exd4 {[%emt 0:02:43]} 13. Nc4 {[%emt 0:09:25]} Qa6 {[%emt 0:01:36]} 14. Nxd4 {[%emt 0:12:13]} Nxd4 {[%emt 0:01:11]} 15. Rxd4 {[%emt 0:00:07]} Be6 {[%emt 0:06:17]} 16. Bf1 {[%emt 0:00:41]} Rc8 {[%emt 0:03:30]} 17. Ne3 {[%emt 0:02:37]} Qxe2 {[%emt 0:03:43]} 18. Bxe2 {[%emt 0:00:05]} Nf6 {[%emt 0:08:02]} 19. b3 {[%emt 0:11:26]} Bd8 {[%emt 0:07:30]} 20. Bf3 {[%emt 0:03:48]} Bxh3 {[%emt 0:06:05]} 21. Rxd6 {[%emt 0:05:38]} Bc7 {[%emt 0:01:18]} 22. Rd1 {[%emt 0:00:38]} Rfe8 {[%emt 0:00:19]} 23. Nd5 {[%emt 0:00:53]} Nxd5 {[%emt 0:05:30]} 24. Rxd5 {[%emt 0:00:15]} f5 {[%emt 0:03:00]} 25. Bb2 {[%emt 0:09:08]} fxe4 {[%emt 0:00:57]} 26. Bg2 {[%emt 0:00:42]} Bxg2 {[%emt 0:02:25]} 27. Kxg2 {[%emt 0:00:05]} Bb6 {[%emt 0:00:16]} 28. Rc1 {[%emt 0:04:05]} Rxc1 {[%emt 0:01:25]} 29. Bxc1 {[%emt 0:00:05]} Rc8 {[%emt 0:00:04]} 30. Be3 {[%emt 0:00:28]} Bxe3 {[%emt 0:01:41]} 31. fxe3 {[%emt 0:00:06]} Rc7 {[%emt 0:04:38]} 32. Kh3 {[%emt 0:02:27]} Kf7 {[%emt 0:02:53]} 33. Kg4 {[%emt 0:00:49]} g6 {[%emt 0:01:14]} 34. Kf4 {[%emt 0:01:25]} Re7 {[%emt 0:00:04]} 35. g4 {[%emt 0:01:54]} h6 {[%emt 0:00:57]} 36. Rd6 {[%emt 0:01:00]} Kg7 {[%emt 0:01:52]} 37. a4 {[%emt 0:00:58]} Kf7 {[%emt 0:01:33]} 38. a5 {[%emt 0:00:30]} a6 {[%emt 0:01:12]} 39. Rb6 {[%emt 0:01:45]} Kg7 {[%emt 0:00:55]} 40. Rd6 {[%emt 0:00:15]} Kf7 {[%emt 0:07:04]} 1/2-1/2

[Event "Berlin Championship 2024"]
[Site "Berlin"]
[Date "2024.03.31"]
[Round "1.6"]
[White "Thiede, Lars"]
[Black "Syre, Christian"]
[Result "1/2-1/2"]
[ECO "A26"]
[WhiteElo "2388"]
[BlackElo "2128"]
[Annotator "RC"]
[PlyCount "84"]
[EventDate "2024.03.30"]
[EventType "swiss"]
[EventCountry "GER"]
[SourceTitle "playchess.com"]
[Source "ChessBase"]
[SourceQuality "1"]
[TimeControl "40/5400+30:1800+30"]

1. c4 {[%emt 0:00:04]} g6 {[%emt 0:00:57]} 2. g3 {[%emt 0:00:19]} Bg7 {[%emt 0:00:06]} 3. Bg2 {[%emt 0:00:10]} e5 {[%emt 0:00:45]} 4. Nc3 {[%emt 0:00:14]} Nc6 {[%emt 0:00:04]} 5. Nf3 {[%emt 0:00:20]} d6 {[%emt 0:00:35]} 6. O-O {[%emt 0:00:16]} Nge7 {[%emt 0:03:45]} 7. d3 {[%emt 0:00:40]} O-O {[%emt 0:02:01]} 8. Rb1 {[%emt 0:00:14]} a5 {[%emt 0:05:12]} 9. a3 {[%emt 0:00:08]} Nd4 {[%emt 0:07:04]} 10. b4 {[%emt 0:07:29]} axb4 {[%emt 0:00:12]} 11. axb4 {[%emt 0:00:07]} c6 {[%emt 0:06:09]} 12. Bb2 {[%emt 0:12:36]} Bg4 {[%emt 0:03:39]} 13. Nxd4 {[%emt 0:21:11]} exd4 {[%emt 0:05:44]} 14. Ne4 {[%emt 0:00:14]} d5 {[%emt 0:37:32]} 15. Nc5 {[%emt 0:05:35]} b6 {[%emt 0:00:18]} 16. Nb3 {[%emt 0:01:43]} dxc4 {[%emt 0:00:52]} 17. dxc4 {[%emt 0:00:25]} Ra2 {[%emt 0:08:33]} 18. Nc1 {[%emt 0:05:10]} Ra7 {[%emt 0:06:29]} 19. Nd3 {[%emt 0:01:31]} Qd7 {[%emt 0:03:42]} 20. Re1 {[%emt 0:02:30]} Rd8 {[%emt 0:02:45]} 21. Qc2 {[%emt 0:02:45]} Qc7 {[%emt 0:01:58]} 22. Bc1 {[%emt 0:08:04]} h6 {[%emt 0:00:12]} 23. Bf4 {[%emt 0:00:28]} Qc8 {[%emt 0:00:29]} 24. Ra1 {[%emt 0:01:07]} Qa8 {[%emt 0:01:26]} 25. Qb2 {[%emt 0:01:13]} Rxa1 {[%emt 0:01:22]} 26. Rxa1 {[%emt 0:00:11]} Qc8 {[%emt 0:00:10]} 27. Kf1 {[%emt 0:11:07]} Qe6 {[%emt 0:00:15]} 28. Qc2 {[%emt 0:01:45]} Re8 {[%emt 0:00:29]} 29. Ra2 {[%emt 0:02:05]} g5 {[%emt 0:00:53]} 30. Bc7 {[%emt 0:04:35]} Nc8 {[%emt 0:00:51]} 31. c5 {[%emt 0:08:03]} b5 {[%emt 0:00:17]} 32. Bb8 {[%emt 0:01:54]} Qd7 {[%emt 0:01:05]} 33. Qc1 {[%emt 0:00:58]} Be6 {[%emt 0:00:29]} 34. Ra6 {[%emt 0:01:22]} Bd5 {[%emt 0:00:06]} 35. Bxd5 {[%emt 0:00:05]} Qxd5 {[%emt 0:00:01]} 36. f3 {[%emt 0:00:13]} Ne7 {[%emt 0:01:05]} 37. Bd6 {[%emt 0:00:21]} Nf5 {[%emt 0:00:01]} 38. Kf2 {[%emt 0:00:33]} Ne3 {[%emt 0:00:40]} 39. g4 {[%emt 0:01:06]} h5 {[%emt 0:00:45]} 40. h3 {[%emt 0:00:04]} hxg4 {[%emt 0:00:44]} 41. hxg4 {[%emt 0:30:29]} Nc4 {[%emt 0:07:49]} 42. Bg3 {[%emt 0:00:00]} Qe6 {[%emt 0:05:51]} 1/2-1/2

[Event "Berlin Championship 2024"]
[Site "Berlin"]
[Date "2024.03.31"]
[Round "1.7"]
[White "Offermann, Fernando"]
[Black "Lagunow, Alexander"]
[Result "0-1"]
[ECO "E45"]
[WhiteElo "2082"]
[BlackElo "2350"]
[Annotator "RC"]
[PlyCount "73"]
[EventDate "2024.03.30"]
[EventType "swiss"]
[EventCountry "GER"]
[SourceTitle "playchess.com"]
[Source "ChessBase"]
[SourceQuality "1"]
[TimeControl "40/5400+30:1800+30"]

1. d4 {[%emt 0:00:11]} Nf6 {[%emt 0:00:07]} 2. c4 {[%emt 0:00:08]} e6 {[%emt 0:00:05]} 3. Nc3 {[%emt 0:00:06]} Bb4 {[%emt 0:00:12]} 4. e3 {[%emt 0:00:09]} b6 {[%emt 0:00:43]} 5. Nge2 {[%emt 0:00:19]} Ba6 {[%emt 0:00:11]} 6. a3 {[%emt 0:00:09]} Be7 {[%emt 0:00:24]} 7. b3 {[%emt 0:01:56]} d5 {[%emt 0:01:49]} 8. cxd5 {[%emt 0:01:25]} Nxd5 {[%emt 0:05:09]} 9. Nxd5 {[%emt 0:00:20]} Qxd5 {[%emt 0:00:26]} 10. Nf4 {[%emt 0:01:24]} Qb7 {[%emt 0:06:22]} 11. Bxa6 {[%emt 0:04:00]} Qxa6 {[%emt 0:04:20]} 12. Qd3 {[%emt 1:26:23]} Bd6 {[%emt 0:18:48]} 13. O-O {[%emt 0:00:00]} Bxf4 {[%emt 0:02:58]} 14. Qe4 {[%emt 0:00:00]} Bxh2+ {[%emt 0:05:41]} 15. Kxh2 {[%emt 0:00:00]} Qxf1 {[%emt 0:00:15]} 16. Qxa8 {[%emt 0:00:00]} O-O {[%emt 0:01:06]} 17. Qxa7 {[%emt 0:00:00]} Nd7 {[%emt 0:20:26]} 18. Qxc7 {[%emt 0:00:00]} Nf6 {[%emt 0:00:40]} 19. f3 {[%emt 0:00:00]} Nd5 {[%emt 0:03:50]} 20. Qc2 {[%emt 0:00:00]} Nxe3 {[%emt 0:02:54]} 21. Qd2 {[%emt 0:00:00]} Nd5 {[%emt 0:05:19]} 22. Bb2 {[%emt 0:00:00]} Qb5 {[%emt 0:01:01]} 23. b4 {[%emt 0:00:00]} Rc8 {[%emt 0:03:18]} 24. Rc1 {[%emt 0:00:00]} Rxc1 {[%emt 0:03:32]} 25. Qxc1 {[%emt 0:00:00]} h6 {[%emt 0:00:46]} 26. Qd2 {[%emt 0:00:00]} Qc4 {[%emt 0:00:48]} 27. Kg1 {[%emt 0:00:00]} b5 {[%emt 0:03:59]} 28. Kf2 {[%emt 0:00:00]} Kf8 {[%emt 0:01:11]} 29. Ke1 {[%emt 0:00:00]} Ke7 {[%emt 0:01:25]} 30. Kf2 {[%emt 0:00:00]} f6 {[%emt 0:00:41]} 31. Ke1 {[%emt 0:00:00]} Nb6 {[%emt 0:04:07]} 32. Qe2 {[%emt 0:00:00]} Qxe2+ {[%emt 0:00:30]} 33. Kxe2 {[%emt 0:00:00]} h5 {[%emt 0:00:08]} 34. Kd3 {[%emt 0:00:00]} Kd6 {[%emt 0:00:14]} 35. Kc3 {[%emt 0:00:00]} Kd5 {[%emt 0:01:43]} 36. Kb3 {[%emt 0:00:00]} Na4 {[%emt 0:00:30]} 37. Bc1 {[%emt 0:12:30]} 0-1

[Event "Berlin Championship 2024"]
[Site "Berlin"]
[Date "2024.03.31"]
[Round "1.8"]
[White "Florstedt, Johannes"]
[Black "Gelman, Josef"]
[Result "1-0"]
[ECO "B12"]
[WhiteElo "2348"]
[BlackElo "2072"]
[Annotator "RC"]
[PlyCount "57"]
[EventDate "2024.03.30"]
[EventType "swiss"]
[EventCountry "GER"]
[SourceTitle "playchess.com"]
[Source "ChessBase"]
[SourceQuality "1"]
[TimeControl "40/5400+30:1800+30"]

1. e4 {[%emt 0:00:03]} c6 {[%emt 0:00:02]} 2. d4 {[%emt 0:00:10]} d5 {[%emt 0:00:03]} 3. e5 {[%emt 0:00:09]} Bf5 {[%emt 0:00:04]} 4. h4 {[%emt 0:00:05]} h5 {[%emt 0:00:05]} 5. Bd3 {[%emt 0:00:09]} Bxd3 {[%emt 0:00:04]} 6. Qxd3 {[%emt 0:00:06]} e6 {[%emt 0:00:01]} 7. Bg5 {[%emt 0:00:12]} Qa5+ {[%emt 0:00:06]} 8. Nd2 {[%emt 0:00:11]} Qa6 {[%emt 0:00:03]} 9. c4 {[%emt 0:00:06]} dxc4 {[%emt 0:00:53]} 10. Nxc4 {[%emt 0:00:44]} Bb4+ {[%emt 0:00:12]} 11. Kf1 {[%emt 0:12:58]} b5 {[%emt 0:16:06]} 12. Ne3 {[%emt 0:00:49]} Nd7 {[%emt 0:00:41]} 13. a3 {[%emt 0:05:57]} Be7 {[%emt 0:10:58]} 14. Rc1 {[%emt 0:06:54]} Rd8 {[%emt 0:05:47]} 15. Nf3 {[%emt 0:03:51]} Bxg5 {[%emt 0:07:44]} 16. hxg5 {[%emt 0:01:00]} Ne7 {[%emt 0:02:19]} 17. g4 {[%emt 0:03:44]} h4 {[%emt 0:03:44]} 18. Rxh4 {[%emt 0:15:36]} Rxh4 {[%emt 0:03:40]} 19. Nxh4 {[%emt 0:00:04]} Nxe5 {[%emt 0:01:09]} 20. Qe4 {[%emt 0:00:33]} b4+ {[%emt 0:20:51]} 21. Kg2 {[%emt 0:02:22]} Nd3 {[%emt 0:00:31]} 22. Rh1 {[%emt 0:01:58]} Nxb2 {[%emt 0:08:38]} 23. Nf3 {[%emt 0:07:22]} Ng6 {[%emt 0:01:44]} 24. Ne5 {[%emt 0:00:32]} Nxe5 {[%emt 0:02:57]} 25. Qxe5 {[%emt 0:00:09]} Nd3 {[%emt 0:02:40]} 26. Qc7 {[%emt 0:00:31]} Rd7 {[%emt 0:01:15]} 27. Rh8+ {[%emt 0:01:19]} Ke7 {[%emt 0:00:07]} 28. Qb8 {[%emt 0:00:05]} Nf4+ {[%emt 0:02:51]} 29. Kh2 {[%emt 0:01:06]} 1-0